fUST/lending_fUST_20250601
["ID","MTS","AMOUNT","RATE_DAILY","PERIOD"]
[363616255,1748788244627,-499.99999901,0.0002298,2]
[363616257,1748788244636,-3505.71,0.00022982,3]
[363616258,1748788244645,-1048.40402565,0.00023,14]
[363616261,1748788244655,-43244.14857093,0.00023,2]
[363616263,1748788244664,-188005.57299744,0.00023,3]
[363616264,1748788244674,-1326.31399406,0.00023,2]
[363616266,1748788244683,-160.0,0.00023,3]
[363616268,1748788244693,-160.0,0.00023,3]
[363616270,1748788244702,-12666.87825251,0.00023,3]
[363616273,1748788244717,-556.48,0.00023005,2]
[363616275,1748788244727,-482.89,0.00023006,2]
[363616277,1748788244736,-155.3651621,0.00023014,2]
[363616279,1748788244746,-198.0,0.00023014,7]
[363616281,1748788244755,-8000.0,0.00023026,3]
[363616283,1748788244764,-423.51412927,0.00023026,3]
[363616285,1748788244772,-229.3709046,0.00023026,3]
[363616287,1748788244781,-176.4890519,0.00023041,2]
[363616289,1748788244789,-306.0,0.00023041,2]
[363616291,1748788244798,-306.0,0.00023041,2]
[363616293,1748788244807,-572.3927371,0.00023041,2]
[363616295,1748788244817,-572.3927371,0.00023041,2]
[363616296,1748788244826,-158.4848398,0.00023041,2]
[363616298,1748788244835,-176.4890519,0.00023041,2]
[363616300,1748788244844,-153.0,0.00023041,2]
[363616302,1748788244853,-153.0,0.00023041,2]
[363616304,1748788244862,-154.200192,0.00023041,2]
[363616306,1748788244871,-572.3927371,0.00023041,2]
[363616308,1748788244880,-158.4848398,0.00023041,2]
[363616310,1748788244890,-176.4890519,0.00023041,2]
[363616312,1748788244897,-572.3927371,0.00023041,2]
[363616314,1748788244905,-158.4848398,0.00023041,2]
[363616316,1748788244914,-572.3927371,0.00023041,2]
[363616318,1748788244922,-153.0,0.00023041,2]
[363616320,1748788244931,-153.0,0.00023041,2]
[363616322,1748788244939,-176.4890519,0.00023041,2]
[363616324,1748788244948,-176.4890519,0.00023041,2]
[363616326,1748788244957,-158.4848398,0.00023041,2]
[363616328,1748788244966,-572.3927371,0.00023041,2]
[363616330,1748788244975,-176.4890519,0.00023041,2]
[363616332,1748788244985,-153.0,0.00023041,2]
[363616335,1748788244994,-158.4848398,0.00023041,2]
[363616337,1748788245004,-572.3927371,0.00023041,2]
[363616338,1748788245014,-306.0,0.00023041,2]
[363616341,1748788245023,-572.3927371,0.00023041,2]
[363616342,1748788245031,-158.4848398,0.00023041,2]
[363616344,1748788245040,-158.4848398,0.00023041,2]
[363616346,1748788245047,-173.4381982,0.00023041,2]
[363616348,1748788245056,-153.0,0.00023041,2]
[363616350,1748788245064,-572.3927371,0.00023041,2]
[363616352,1748788245072,-158.4848398,0.00023041,2]
[363616355,1748788245082,-572.3927371,0.00023041,2]
[363616357,1748788245090,-158.4848398,0.00023041,2]
[363616358,1748788245097,-572.3927371,0.00023041,2]
[363616360,1748788245105,-153.0,0.00023041,2]
[363616362,1748788245113,-153.0,0.00023041,2]
[363616364,1748788245121,-158.4848398,0.00023041,2]
[363616366,1748788245128,-572.3927371,0.00023041,2]
[363616368,1748788245136,-305.5722759,0.00023041,2]
[363616371,1748788245145,-572.3927371,0.00023041,2]
[363616373,1748788245154,-153.0,0.00023041,2]
[363616375,1748788245162,-190.8638777,0.00023041,2]
[363616377,1748788245171,-572.3927371,0.00023041,2]
[363616379,1748788245180,-153.0,0.00023041,2]
[363616381,1748788245188,-153.0,0.00023041,2]
[363616383,1748788245196,-280.69,0.000231,7]
[363616385,1748788245205,-126786.23,0.000231,7]
[363616387,1748788245214,-2864.97,0.000231,2]
[363616389,1748788245223,-12666.87825251,0.000231,7]
[363616391,1748788245232,-5000.0,0.00023157,2]
[363616394,1748788245241,-151.0,0.000232,8]
[363616396,1748788245248,-556.48,0.00023279,2]
[363616397,1748788245256,-482.98848172,0.0002328,2]
[363616399,1748788245264,-308.6687316,0.00023315,2]
[363616401,1748788245276,-1396.697928,0.00023324,3]
[363616403,1748788245283,-556.66,0.00023553,2]
[363616405,1748788245291,-3695.69825899,0.00023562,2]
[363616407,1748788245299,-157.461914,0.00023695,3]
[363616409,1748788245306,-175.527556,0.00023695,3]
[363616411,1748788245316,-952.0,0.000237,3]
[363616413,1748788245324,-952.0,0.000237,3]
[363616415,1748788245333,-952.0,0.000237,3]
[363616417,1748788245342,-952.0,0.000237,3]
[363616419,1748788245351,-952.0,0.000237,3]
[363616421,1748788245359,-952.0,0.000237,3]
[363616423,1748788245368,-952.0,0.000237,3]
[363616425,1748788245377,-952.0,0.000237,3]
[363616427,1748788245385,-952.0,0.000237,3]
[363616429,1748788245392,-952.0,0.000237,3]
[363616431,1748788245401,-153.0,0.000237,31]
[363616433,1748788245410,-153.0,0.000237,31]
[363616435,1748788245419,-153.0,0.000237,31]
[363616438,1748788245428,-153.0,0.000237,31]
[363616440,1748788245437,-153.0,0.000237,31]
[363616442,1748788245447,-153.0,0.000237,31]
[363616444,1748788245456,-153.0,0.000237,31]
[363616445,1748788245466,-153.0,0.000237,31]
[363616447,1748788245474,-153.0,0.000237,31]
[363616450,1748788245483,-153.0,0.000237,31]
[363616453,1748788245491,-153.0,0.000237,31]
[363616455,1748788245499,-153.0,0.000237,31]
[363616457,1748788245507,-153.0,0.000237,31]
[363616458,1748788245514,-153.0,0.000237,31]
[363616460,1748788245523,-153.0,0.000237,31]
[363616462,1748788245533,-493.46,0.000237,7]
[363616464,1748788245543,-189.06177513,0.000237,2]
[363616466,1748788245553,-1740.08153917,0.000237,2]
[363616469,1748788245564,-1802.47377395,0.000237,30]
[363616471,1748788245574,-151.0,0.000237,7]
[363616473,1748788245584,-5000.0,0.00023705,2]
[363616475,1748788245594,-1740.08153913,0.00023706,2]
[363616477,1748788245604,-1740.08153913,0.00023712,2]
[363616479,1748788245614,-1740.08153913,0.00023718,2]
[363616481,1748788245624,-1740.08153913,0.00023724,2]
[363616483,1748788245634,-1740.08153913,0.00023731,2]
[363616485,1748788245644,-1740.08153913,0.00023737,2]
[363616487,1748788245654,-1740.08153913,0.00023743,2]
[363616489,1748788245663,-1740.08153913,0.00023749,2]
[363616491,1748788245673,-160.0,0.00023755,2]
[363616493,1748788245683,-1740.08153913,0.00023755,2]
[363616495,1748788245693,-155.24269047,0.00023755,2]
[363616497,1748788245703,-2043.6513554,0.00023788,2]
[363616499,1748788245714,-155.98,0.0002379,10]
[363616501,1748788245724,-10807.55566457,0.000238,3]
[363616515,1748788245840,-92436.04660888,0.000238,2]
[363616517,1748788245850,-1820.38186652,0.000238,7]
[363616519,1748788245860,-300.75750676,0.000238,2]
[363616521,1748788245870,-604168.06006823,0.000238,2]
[363616534,1748788246007,-4466.2717165,0.000238,2]
[363616535,1748788246018,-534.82641653,0.000238,2]
[363616536,1748788246034,-695.24,0.000238,2]
[363616555,1748788246210,-453.21,0.00016438,2]
[363616557,1748788246220,-430.0,0.00016438,2]
[363616559,1748788246230,-430.0,0.00016438,2]
[363616561,1748788246240,-453.21,0.00016712,2]
[363616563,1748788246249,-430.0,0.00016712,2]
[363616565,1748788246259,-430.0,0.00016712,2]
[363616567,1748788246270,-430.0,0.00016978,2]
[363616569,1748788246281,-453.21,0.00016986,2]
[363616571,1748788246292,-201.06,0.00016986,2]
[363616573,1748788246302,-430.0,0.00016986,2]
[363616575,1748788246313,-430.0,0.00017252,2]
[363616577,1748788246323,-453.21,0.0001726,2]
[363616579,1748788246333,-315.98678675,0.0001726,2]
[363616581,1748788246342,-300.0,0.00017525,2]
[363616583,1748788246353,-453.21,0.00017534,2]
[363616585,1748788246364,-453.21,0.00017808,2]
[363616587,1748788246374,-453.21,0.00018082,2]
[363616589,1748788246383,-453.21,0.00018356,2]
[363616591,1748788246393,-160.0,0.00018527,2]
[363616593,1748788246402,-3366.01671424,0.00018527,2]
[363616596,1748788246414,-9300.86153827,0.00018527,2]
[363616598,1748788246424,-453.21,0.0001863,2]
[363616600,1748788246434,-656.62201654,0.000189,2]
[363616602,1748788246444,-453.21,0.00018904,2]
[363616604,1748788246454,-453.21,0.00019178,2]
[363616606,1748788246467,-453.21,0.00019452,2]
[363616608,1748788246476,-453.21,0.00019726,2]
[363616610,1748788246486,-453.21,0.0002,2]
[363616612,1748788246495,-453.21,0.00020273,2]
[363616614,1748788246504,-453.21,0.00020547,2]
[363616616,1748788246513,-453.21,0.00020821,2]
[363616618,1748788246523,-453.21,0.00021095,2]
[363616620,1748788246533,-70623.74845922,0.000238,2]
[363616624,1748788246563,-453.21,0.00021369,2]
[363616626,1748788246572,-73.05505581,0.00021643,2]
[363617409,1748788400666,278.999662,0.00013699,2]
[363617417,1748788678730,3000.0,0.00021917,60]
[363617419,1748788872185,-3383.63558289,0.00015159,2]
[363617420,1748788872208,-197.73646322,0.00015312,2]
[363617421,1748788872233,-329.56077204,0.00015945,2]
[363617422,1748788872262,-1200.0,0.00016434,2]
[363617423,1748788872286,-300.0,0.00016434,2]
[363617424,1748788872310,-300.0,0.00016434,2]
[363617425,1748788872332,-300.0,0.00016435,2]
[363617426,1748788872356,-300.0,0.00016435,2]
[363617427,1748788872379,-300.0,0.00016435,2]
[363617428,1748788872405,-535.35401313,0.00016437,2]
[363617429,1748788872429,-341.09144143,0.00016437,2]
[363617430,1748788872452,-525.00150305,0.00016437,2]
[363617431,1748788872478,-248.61890634,0.00016437,2]
[363617432,1748788872503,-500.0,0.00016437,2]
[363617433,1748788872529,-430.0,0.00016438,2]
[363617434,1748788872554,-430.0,0.00016438,2]
[363617435,1748788872578,-430.0,0.00016438,2]
[363617436,1748788872603,-430.0,0.00016438,2]
[363617437,1748788872627,-430.0,0.00016438,2]
[363617438,1748788872651,-430.0,0.00016438,2]
[363617439,1748788872675,-430.0,0.00016438,2]
[363617440,1748788872699,-430.0,0.00016438,2]
[363617441,1748788872722,-430.0,0.00016438,2]
[363617442,1748788872746,-430.0,0.00016438,2]
[363617443,1748788872769,-430.0,0.00016438,2]
[363617444,1748788872795,-430.0,0.00016438,2]
[363617445,1748788872816,-430.0,0.00016438,2]
[363617446,1748788872840,-430.0,0.00016438,2]
[363617447,1748788872863,-430.0,0.00016438,2]
[363617448,1748788872885,-430.0,0.00016438,2]
[363617449,1748788872908,-430.0,0.00016438,2]
[363617450,1748788872931,-528.94953731,0.00016438,2]
[363617451,1748788872953,-430.0,0.00016438,2]
[363617452,1748788872977,-430.0,0.00016438,2]
[363617453,1748788872999,-430.0,0.00016438,2]
[363617454,1748788873021,-430.0,0.00016438,2]
[363617455,1748788873042,-430.0,0.00016438,2]
[363617456,1748788873062,-430.0,0.00016438,2]
[363617457,1748788873083,-430.0,0.00016438,2]
[363617458,1748788873296,-367.75166967,0.00016438,2]
[363617459,1748788873319,-430.0,0.00016438,2]
[363617460,1748788873343,-430.0,0.00016438,2]
[363617461,1748788873367,-430.0,0.00016438,2]
[363617462,1748788873389,-343.22230058,0.00016438,2]
[363617463,1748788873412,-430.0,0.00016438,2]
[363617464,1748788873435,-430.0,0.00016438,2]
[363617465,1748788873458,-430.0,0.00016438,2]
[363617466,1748788873482,-546.4,0.00016438,2]
[363617467,1748788873506,-430.0,0.00016438,2]
[363617468,1748788873533,-534.88135862,0.00016438,2]
[363617469,1748788873557,-430.0,0.00016438,2]
[363617470,1748788873580,-533.28514025,0.00016438,2]
[363617471,1748788873605,-430.0,0.00016438,2]
[363617472,1748788873628,-430.0,0.00016438,2]
[363617473,1748788873656,-430.0,0.00016438,2]
[363617474,1748788873680,-430.0,0.00016438,2]
[363617475,1748788873704,-430.0,0.00016438,2]
[363617476,1748788873726,-430.0,0.00016438,2]
[363617477,1748788873747,-430.0,0.00016438,2]
[363617478,1748788873770,-430.0,0.00016438,2]
[363617479,1748788873792,-430.0,0.00016438,2]
[363617480,1748788873815,-430.0,0.00016438,2]
[363617481,1748788873839,-430.0,0.00016438,2]
[363617482,1748788873861,-430.0,0.00016438,2]
[363617483,1748788873884,-430.0,0.00016438,2]
[363617484,1748788873906,-346.03172676,0.00016438,2]
[363617485,1748788873929,-500.0,0.00016438,2]
[363617486,1748788873953,-351.62980302,0.00016438,2]
[363617487,1748788873976,-430.0,0.00016438,2]
[363617488,1748788873999,-430.0,0.00016438,2]
[363617489,1748788874021,-431.70411064,0.00016438,2]
[363617490,1748788874047,-430.0,0.00016438,2]
[363617491,1748788874071,-430.0,0.00016438,2]
[363617492,1748788874093,-451.81794322,0.00016438,2]
[363617493,1748788874116,-430.0,0.00016438,2]
[363617494,1748788874139,-430.0,0.00016438,2]
[363617495,1748788874162,-430.0,0.00016438,2]
[363617496,1748788874187,-430.0,0.00016438,2]
[363617497,1748788874210,-433.9319657,0.00016438,2]
[363617498,1748788874235,-430.0,0.00016438,2]
[363617499,1748788874257,-430.0,0.00016438,2]
[363617500,1748788874281,-437.59848366,0.00016438,2]
[363617501,1748788874305,-441.78,0.00016438,2]
[363617502,1748788874328,-358.33129502,0.00016438,2]
[363617503,1748788874352,-430.0,0.00016438,2]
[363617504,1748788874374,-430.0,0.00016438,2]
[363617505,1748788874397,-430.0,0.00016438,2]
[363617506,1748788874420,-151.93960081,0.00016438,2]
[363617507,1748788874443,-403.81510061,0.00016438,2]
[363617508,1748788874466,-430.0,0.00016438,2]
[363617509,1748788874490,-430.0,0.00016438,2]
[363617510,1748788874516,-406.97986081,0.00016438,2]
[363617511,1748788874539,-430.0,0.00016438,2]
[363617512,1748788874566,-430.0,0.00016438,2]
[363617513,1748788874590,-430.0,0.00016438,2]
[363617514,1748788874614,-430.0,0.00016438,2]
[363617515,1748788874637,-430.0,0.00016438,2]
[363617516,1748788874660,-430.0,0.00016438,2]
[363617517,1748788874688,-430.0,0.00016438,2]
[363617518,1748788874712,-430.0,0.00016438,2]
[363617519,1748788874735,-430.0,0.00016438,2]
[363617520,1748788874758,-372.02701649,0.00016438,2]
[363617521,1748788874782,-430.0,0.00016438,2]
[363617522,1748788874808,-430.0,0.00016438,2]
[363617523,1748788874831,-430.0,0.00016438,2]
[363617524,1748788874854,-430.0,0.00016438,2]
[363617525,1748788874878,-430.0,0.00016438,2]
[363617526,1748788874900,-430.0,0.00016438,2]
[363617527,1748788874929,-430.0,0.00016438,2]
[363617528,1748788874955,-430.0,0.00016438,2]
[363617529,1748788874979,-430.0,0.00016438,2]
[363617530,1748788875003,-313.19134292,0.00016438,2]
[363617531,1748788875030,-430.0,0.00016438,2]
[363617532,1748788875052,-430.0,0.00016438,2]
[363617533,1748788875077,-583.73306181,0.00016438,2]
[363617548,1748789144127,-5000.0,0.00015663,2]
[363617549,1748789144149,-797.1385303,0.00015821,2]
[363617550,1748789144172,-164.476756,0.00016027,2]
[363617551,1748789144193,-167.76921186,0.00016338,2]
[363617552,1748789144217,-300.0,0.00016436,2]
[363617553,1748789144240,-500.0,0.00016437,2]
[363617554,1748789144262,-500.0,0.00016437,2]
[363617555,1748789144285,-421.95170786,0.00016437,2]
[363617556,1748789144308,-430.0,0.00016438,2]
[363617557,1748789144329,-430.0,0.00016438,2]
[363617558,1748789144351,-430.0,0.00016438,2]
[363617559,1748789144374,-500.0,0.00016438,2]
[363617560,1748789144400,-430.0,0.00016438,2]
[363617561,1748789144421,-430.0,0.00016438,2]
[363617562,1748789144443,-430.0,0.00016438,2]
[363617563,1748789144466,-430.0,0.00016438,2]
[363617564,1748789144487,-430.0,0.00016438,2]
[363617565,1748789144508,-439.96834035,0.00016438,2]
[363617566,1748789144531,-430.0,0.00016438,2]
[363617567,1748789144552,-312.36548307,0.00016438,2]
[363617568,1748789144574,-430.0,0.00016438,2]
[363617569,1748789144599,-430.0,0.00016438,2]
[363617570,1748789144622,-430.0,0.00016438,2]
[363617571,1748789144645,-430.0,0.00016438,2]
[363617572,1748789144667,-430.0,0.00016438,2]
[363617573,1748789144688,-430.0,0.00016438,2]
[363617574,1748789144710,-430.0,0.00016438,2]
[363617575,1748789144732,-430.0,0.00016438,2]
[363617576,1748789144752,-430.0,0.00016438,2]
[363617577,1748789144774,-430.0,0.00016438,2]
[363617578,1748789144795,-430.0,0.00016438,2]
[363617579,1748789144816,-430.0,0.00016438,2]
[363617580,1748789144839,-430.46977629,0.00016438,2]
[363617581,1748789144861,-430.0,0.00016438,2]
[363617582,1748789144882,-373.3488749,0.00016438,2]
[363617583,1748789144903,-403.07429824,0.00016438,2]
[363617584,1748789144924,-430.0,0.00016438,2]
[363617585,1748789144945,-394.0415995,0.00016438,2]
[363617586,1748789144966,-430.0,0.00016438,2]
[363617587,1748789144986,-430.0,0.00016438,2]
[363617588,1748789145007,-430.0,0.00016438,2]
[363617589,1748789145030,-430.0,0.00016438,2]
[363617590,1748789145051,-430.79415525,0.00016438,2]
[363617591,1748789145072,-430.0,0.00016438,2]
[363617592,1748789145096,-430.0,0.00016438,2]
[363617593,1748789145119,-430.0,0.00016438,2]
[363617594,1748789145142,-430.0,0.00016438,2]
[363617595,1748789145163,-430.0,0.00016438,2]
[363617596,1748789145185,-430.0,0.00016438,2]
[363617597,1748789145208,-430.0,0.00016438,2]
[363617598,1748789145230,-430.0,0.00016438,2]
[363617599,1748789145252,-290.16,0.00016438,2]
[363617600,1748789145274,-430.0,0.00016438,2]
[363617601,1748789145296,-430.0,0.00016438,2]
[363617602,1748789145318,-430.0,0.00016438,2]
[363617603,1748789145340,-430.0,0.00016438,2]
[363617604,1748789145361,-201.19543598,0.00016438,2]
[363617605,1748789145385,-355.15836169,0.00016438,2]
[363617606,1748789145408,-430.0,0.00016438,2]
[363617607,1748789145431,-430.0,0.00016438,2]
[363617608,1748789145452,-430.0,0.00016438,2]
[363617609,1748789145476,-430.0,0.00016438,2]
[363617610,1748789145497,-540.79488643,0.00016438,2]
[363617611,1748789145519,-430.0,0.00016438,2]
[363617612,1748789145541,-430.0,0.00016438,2]
[363617613,1748789145564,-324.53541914,0.00016438,2]
[363617614,1748789145589,-430.0,0.00016438,2]
[363617615,1748789145612,-430.0,0.00016438,2]
[363617616,1748789145636,-430.0,0.00016438,2]
[363617617,1748789145662,-430.0,0.00016438,2]
[363617618,1748789145685,-190.36,0.00016438,2]
[363617619,1748789145707,-430.0,0.00016438,2]
[363617620,1748789145731,-570.9,0.00016438,2]
[363617621,1748789145752,-430.0,0.00016438,2]
[363617622,1748789145774,-220.36078948,0.00016438,2]
[363617623,1748789226092,-160.0,0.00016437,2]
[363617624,1748789226118,-209.63921052,0.00016438,2]
[363617625,1748789226143,-430.0,0.00016438,2]
[363617626,1748789226165,-430.0,0.00016438,2]
[363617627,1748789226187,-336.49254424,0.00016438,2]
[363617628,1748789226210,-430.0,0.00016438,2]
[363617629,1748789226233,-430.0,0.00016438,2]
[363617630,1748789226256,-430.0,0.00016438,2]
[363617631,1748789226279,-430.0,0.00016438,2]
[363617632,1748789226302,-430.0,0.00016438,2]
[363617633,1748789226324,-430.0,0.00016438,2]
[363617634,1748789226346,-430.0,0.00016438,2]
[363617635,1748789226374,-438.37,0.00016438,2]
[363617636,1748789226396,-430.0,0.00016438,2]
[363617637,1748789226419,-430.0,0.00016438,2]
[363617638,1748789226440,-430.0,0.00016438,2]
[363617639,1748789226463,-430.0,0.00016438,2]
[363617640,1748789226485,-430.0,0.00016438,2]
[363617641,1748789226508,-430.0,0.00016438,2]
[363617642,1748789226532,-430.0,0.00016438,2]
[363617643,1748789226561,-806.8,0.00016438,2]
[363617644,1748789226584,-430.0,0.00016438,2]
[363617645,1748789226612,-1152.61,0.00016438,2]
[363617646,1748789226640,-430.0,0.00016438,2]
[363617647,1748789226664,-430.0,0.00016438,2]
[363617648,1748789226685,-430.0,0.00016438,2]
[363617649,1748789226707,-430.0,0.00016438,2]
[363617650,1748789226735,-430.0,0.00016438,2]
[363617651,1748789226758,-430.0,0.00016438,2]
[363617652,1748789226779,-430.0,0.00016438,2]
[363617653,1748789226803,-430.0,0.00016438,2]
[363617654,1748789226824,-430.0,0.00016438,2]
[363617655,1748789226847,-430.0,0.00016438,2]
[363617656,1748789226871,-567.41535896,0.00016438,2]
[363617657,1748789226895,-430.0,0.00016438,2]
[363617658,1748789226920,-430.0,0.00016438,2]
[363617659,1748789226941,-400.5083285,0.00016438,2]
[363617660,1748789226961,-430.0,0.00016438,2]
[363617661,1748789226980,-430.0,0.00016438,2]
[363617662,1748789227001,-430.0,0.00016438,2]
[363617663,1748789227021,-430.0,0.00016438,2]
[363617664,1748789227043,-430.0,0.00016438,2]
[363617665,1748789227066,-430.0,0.00016438,2]
[363617666,1748789227091,-430.0,0.00016438,2]
[363617667,1748789227113,-430.0,0.00016438,2]
[363617668,1748789227135,-430.0,0.00016438,2]
[363617669,1748789227161,-430.0,0.00016438,2]
[363617670,1748789227185,-430.0,0.00016438,2]
[363617671,1748789227209,-430.0,0.00016438,2]
[363617672,1748789227232,-430.0,0.00016438,2]
[363617673,1748789227254,-430.0,0.00016438,2]
[363617674,1748789227276,-430.0,0.00016438,2]
[363617675,1748789227301,-430.0,0.00016438,2]
[363617676,1748789227327,-557.25,0.00016438,2]
[363617677,1748789227353,-430.0,0.00016438,2]
[363617678,1748789227376,-430.0,0.00016438,2]
[363617679,1748789227400,-430.0,0.00016438,2]
[363617680,1748789227423,-430.0,0.00016438,2]
[363617681,1748789227447,-430.0,0.00016438,2]
[363617682,1748789227471,-430.0,0.00016438,2]
[363617683,1748789227494,-430.0,0.00016438,2]
[363617684,1748789227518,-399.81156976,0.00016438,2]
[363617685,1748789227770,-30.18843024,0.00016438,2]
[363617686,1748789227796,-430.0,0.00016438,2]
[363617687,1748789227820,-430.0,0.00016438,2]
[363617688,1748789227843,-430.0,0.00016438,2]
[363617689,1748789227866,-190.59266504,0.00016438,2]
[363617690,1748789228099,-239.40733496,0.00016438,2]
[363617691,1748789228124,-430.0,0.00016438,2]
[363617692,1748789228147,-430.0,0.00016438,2]
[363617693,1748789228172,-430.0,0.00016438,2]
[363617694,1748789228195,-430.0,0.00016438,2]
[363617695,1748789228221,-461.75,0.00016438,2]
[363617696,1748789228243,-312.66794337,0.00016438,2]
[363617697,1748789228264,-430.0,0.00016438,2]
[363617698,1748789228286,-430.0,0.00016438,2]
[363617699,1748789228312,-430.0,0.00016438,2]
[363617700,1748789228335,-430.0,0.00016438,2]
[363617701,1748789228356,-430.0,0.00016438,2]
[363617702,1748789228380,-197.61,0.00016438,2]
[363617703,1748789228404,-430.0,0.00016438,2]
[363617704,1748789228427,-455.17,0.00016438,2]
[363617705,1748789228453,-1174.11,0.00016438,2]
[363617706,1748789228476,-430.0,0.00016438,2]
[363617707,1748789228500,-674.23,0.00016438,2]
[363617708,1748789228522,-430.0,0.00016438,2]
[363617709,1748789228546,-473.521244,0.00016438,2]
[363617710,1748789228567,-430.0,0.00016438,2]
[363617711,1748789228591,-430.0,0.00016438,2]
[363617712,1748789228612,-430.0,0.00016438,2]
[363617713,1748789228634,-430.0,0.00016438,2]
[363617714,1748789228655,-430.0,0.00016438,2]
[363617715,1748789228678,-316.77302894,0.00016438,2]
[363617718,1748789363095,-113.22697106,0.00016438,2]
[363617719,1748789363119,-554.77,0.00016438,2]
[363617720,1748789363142,-430.0,0.00016438,2]
[363617721,1748789363165,-430.0,0.00016438,2]
[363617722,1748789363187,-430.0,0.00016438,2]
[363617723,1748789363208,-430.0,0.00016438,2]
[363617724,1748789363231,-430.0,0.00016438,2]
[363617725,1748789363252,-430.0,0.00016438,2]
[363617726,1748789363272,-430.0,0.00016438,2]
[363617727,1748789363292,-430.0,0.00016438,2]
[363617728,1748789363314,-653.8,0.00016438,2]
[363617729,1748789363335,-430.0,0.00016438,2]
[363617730,1748789363355,-430.0,0.00016438,2]
[363617731,1748789363379,-1917.57,0.00016438,2]
[363617732,1748789363401,-431.70424533,0.00016438,2]
[363617733,1748789363423,-1088.34,0.00016438,2]
[363617734,1748789363444,-430.0,0.00016438,2]
[363617735,1748789363465,-430.0,0.00016438,2]
[363617736,1748789363486,-430.0,0.00016438,2]
[363617737,1748789363507,-203.21947115,0.00016438,2]
[363617738,1748789363529,-618.91,0.00016438,2]
[363617739,1748789363550,-430.0,0.00016438,2]
[363617740,1748789363572,-430.0,0.00016438,2]
[363617741,1748789363594,-1996.58,0.00016438,2]
[363617742,1748789363614,-520.0,0.00016438,2]
[363617743,1748789363637,-349.7352067,0.00016438,2]
[363617744,1748789363660,-430.0,0.00016438,2]
[363617745,1748789363681,-350.13444175,0.00016438,2]
[363617746,1748789363704,-430.0,0.00016438,2]
[363617747,1748789363853,-430.0,0.00016438,2]
[363617748,1748789363876,-430.0,0.00016438,2]
[363617749,1748789363897,-561.11,0.00016438,2]
[363617750,1748789363921,-430.0,0.00016438,2]
[363617751,1748789363942,-430.0,0.00016438,2]
[363617752,1748789363964,-430.0,0.00016438,2]
[363617753,1748789363985,-430.0,0.00016438,2]
[363617754,1748789364006,-430.0,0.00016438,2]
[363617755,1748789364026,-436.57179941,0.00016438,2]
[363617756,1748789364048,-430.0,0.00016438,2]
[363617757,1748789364070,-430.0,0.00016438,2]
[363617758,1748789364091,-450.37450979,0.00016438,2]
[363617759,1748789364114,-430.0,0.00016438,2]
[363617760,1748789364136,-430.0,0.00016438,2]
[363617761,1748789364158,-430.0,0.00016438,2]
[363617762,1748789364180,-187.02358768,0.00016438,2]
[363617765,1748789398867,279.695441,0.00013699,2]
[363617804,1748789432262,-1750.72605576,0.00016,2]
[363617806,1748789432274,-249.27394424,0.00016,2]
[363617808,1748789432284,-167.76921185,0.00016338,2]
[363617810,1748789432295,-150.14129637,0.00016338,21]